Cogmind - Beta 15 @@@ ROGUE MODE // 2025.05.19 @ 18:18:18 Player: GiggleBox Result: Destroyed by G-47 Trooper with Particle Gun Performance ------------- Evolutions (2) 1000 Regions Visited (3) 600 Robots Destroyed (112) 560 Value Destroyed (3018) 3018 Prototype IDs (5) 100 Alien Tech Used (0) 0 Bonus (112) 112 TOTAL SCORE: 5390 Bonus ------- High Alert Combat Kills 112 Cogmind --------- Core Integrity 0/550 Matter 157/450 Energy 160/160 System Corruption 0% Temperature Cool (60) Movement Treading (225) Ox1 Location -8/Materials Parts ------- > --- POWER (1) -------- Light Nuclear Core > --- PROPULSION (3) --- Advanced Treads > --- UTILITY (4) ------ Large Storage Unit Large Matter Pod Machine Analyzer Transmission Jammer > --- WEAPON (3) ------- Advanced Assault Cannon > --- INVENTORY (15) --- Improved Ion Engine Active Sensor Suite Graphene Brace Dynamic Insulation System Advanced Assault Cannon Advanced Assault Cannon Datajack Mace Great Axe Peak State ------------ > --- POWER ------------ Light Nuclear Core > --- PROPULSION ------- Light Treads Improved Treads Advanced Treads > --- UTILITY ---------- Large Storage Unit Machine Analyzer Seismic Detector Transmission Jammer > --- WEAPON ----------- Heavy Assault Cannon Advanced Assault Cannon > --- INVENTORY -------- Improved Ion Engine Advanced Treads Large Matter Pod Active Sensor Suite Graphene Brace Dynamic Insulation System Advanced Assault Cannon Advanced Assault Cannon Advanced Assault Cannon Datajack Mace Great Axe [Rating: 34] Favorites ----------- Power Nuclear Core Engine Light Ion Engine Power Core Nuclear Core Propulsion Light Treads Treads Light Treads Hover Unit Improved Hover Unit Flight Unit Improved Flight Unit Utility Large Storage Unit Device Seismic Detector Storage Large Storage Unit Processor Machine Analyzer Protection Hardened Medium Armor Plating Weapon Improved Assault Rifle Energy Gun Improved EM Shotgun Energy Cannon Advanced Beam Cannon Ballistic Gun Improved Assault Rifle Ballistic Cannon Heavy Assault Cannon Launcher Rocket Launcher Impact Weapon Mace Build | -11 -10 -9 -8 ------- Run | Yrd Mat Mat Mat Slots Evolved 4 | . . 2 2 Power . | . . . . Propulsion 1 | . . 1 . Utility 2 | . . . 2 Weapon 1 | . . 1 . Parts Attached 60 | 7 7 26 20 Power 5 | 1 . 2 2 Engine 2 | 1 . 1 . Core 3 | . . 1 2 Reactor . | . . . . Propulsion 19 | 2 3 8 6 Treads 14 | 2 . 6 6 Leg . | . . . . Wheel . | . . . . Hover 4 | . 2 2 . Flight 1 | . 1 . . Utility 12 | 2 1 2 7 Device 5 | 1 . . 4 Storage 4 | 1 1 1 1 Processor 2 | . . . 2 Hackware . | . . . . Protection 1 | . . 1 . Artifact . | . . . . Weapon 24 | 2 3 14 5 Energy Gun 5 | . 1 4 . Energy Cannon 1 | . . . 1 Ballistic Gun 9 | 2 2 5 . Ballistic Cannon 6 | . . 3 3 Launcher 1 | . . . 1 Special Weapon . | . . . . Impact Weapon 2 | . . 2 . Slashing Weapon . | . . . . Piercing Weapon . | . . . . Special Melee Weapon . | . . . . Unidentified Prototypes 5 | . 1 3 1 Parts Lost 23 | . . 2 21 Power 2 | . . . 2 Propulsion 10 | . . 2 8 Utility 5 | . . . 5 Weapon 6 | . . . 6 Highest Loss Streak 9 | . . 2 9 To Critical Strikes . | . . . . Average Backups 12 | 1 9 14 12 Power 1 | . 1 1 . Propulsion 2 | . 4 2 1 Utility 3 | . 1 4 4 Weapon 4 | . 2 5 4 Tool/Special . | . . . . Unused Backups 18 | . 1 8 9 Power 3 | . . 2 1 Propulsion 2 | . 1 1 . Utility 7 | . . 3 4 Weapon 5 | . . 2 3 Tool/Special 1 | . . . 1 Average Slot Usage (%) 96 | . 100 99 89 Engine 3 | . 14 1 . Core 7 | . . 9 8 Treads 25 | . 13 29 25 Hover 4 | . 14 3 . Device 10 | . 14 8 13 Storage 10 | . 14 11 9 Processor 3 | . . . 11 Protection 1 | . . 2 1 Energy Gun 3 | . 8 4 . Ballistic Gun 18 | . 19 24 7 Ballistic Cannon 3 | . . . 9 Impact Weapon 1 | . . 3 . Peak Build Rating 34 | 7 13 23 34 Average Rating 21 | 5 10 20 29 On Entrance 9 | . 7 10 21 Naked Turns . | . . . . Heaviest Build 48 | 13 30 45 48 Greatest Support 66 | 40 40 63 66 Greatest Overweight (x) 9 | 3 9 1 1 Average Overweight (x) . | . 1 . . Largest Inventory Capacity 15 | 8 15 15 15 Average Capacity 14 | 7 14 15 15 Most Carried 15 | 2 15 15 15 Average Carried 13 | 1 9 14 13 Final Capacity 15 | 8 15 15 15 Final Carried 15 | 2 15 15 11 Class Distribution -------------------- 34% | Gunner 33% | Mutant 11% | Scavenger-Skirmisher 10% | Tank 9% | Scavenger-Mutant Dominant Class ---------------- Mutant | -10/Materials Gunner | -9/Materials Scavenger-Skirmisher | -8/Materials Resources | -11 -10 -9 -8 ----------- Run | Yrd Mat Mat Mat Matter Collected 2970 | 273 233 1094 1370 Remotely . | . . . . Salvage Created 3528 | 28 364 1666 1470 Parts 210 | 3 27 103 77 Haulers Intercepted 9 | . 1 5 3 Recyclers Shooed 2 | 1 1 . . Parts Field Recycled . | . . . . Retrieved Matter . | . . . . Parts Self-Destructed . | . . . . Prevented . | . . . . Kills | -11 -10 -9 -8 ------- Run | Yrd Mat Mat Mat Combat Hostiles Destroyed 81 | . 11 30 40 Guns 40 | . 10 27 3 Cannons 32 | . . 2 30 AOE 8 | . 1 . 7 Classes Destroyed 13 | 1 5 5 2 Worker 4 | . . 1 3 Tunneler 3 | 1 . 1 1 Hauler 9 | . 1 5 3 Recycler 3 | . . 1 2 Mechanic 1 | . . 1 . Operator 1 | . 1 . . Watcher 10 | . 2 4 4 Swarmer 24 | . 8 6 10 Grunt 35 | . 3 14 18 Brawler 4 | . . 1 3 Protector 1 | . . . 1 Sentry 15 | . . 9 6 Heavy 2 | . . . 2 Best Kill Streak 10 | 1 3 5 10 Combat Bots Only 10 | . 3 4 10 Max Kills in Single Turn 5 | 1 1 2 5 Gunslinging 1 | . . 1 . Exploded 4 | . 1 . 4 Melee . | . . . . Uniques/NPCs Destroyed . | . . . . Combat | -11 -10 -9 -8 -------- Run | Yrd Mat Mat Mat Hostile Shots Fired 342 | . 47 78 217 Missed 104 | . 13 29 62 Hits 238 | . 34 49 155 Projectile 238 | . 34 49 155 Critical Strikes 10 | . . . 10 Actively Blocked 4 | . . . 4 Damage Taken 4113 | . 296 619 3198 Core 686 | . 57 73 556 Absorbed by Shields . | . . . . Regen/Repaired (Parts) 84 | . . 84 . Core Remaining (%) 86 | 100 77 81 . Volleys Fired 298 | 2 36 71 189 Largest 3 | 2 2 3 3 Hottest 91 | 40 63 91 79 Shots Fired 489 | 4 72 186 227 Gun 306 | 4 72 176 54 Cannon 178 | . . 10 168 Launcher 5 | . . . 5 Special . | . . . . Kinetic 399 | 4 54 151 190 Thermal 32 | . . . 32 Explosive 5 | . . . 5 Electromagnetic 53 | . 18 35 . Robot Hit Streak 17 | 3 6 17 14 Robot Miss Streak 7 | 1 7 5 3 Penetration Max 1 | . . . 1 Secondary Targets 5 | . 1 3 1 Max Gunslinging Chain 1 | . 1 1 1 Shots Hit Robots 334 | 3 39 126 166 Core Hits 143 | 2 19 57 65 Critical Kills . | . . . . Critical Parts Destroyed . | . . . . Critical Strikes 10 | . . 1 9 Blast 10 | . . 1 9 Melee Attacks 22 | . . 20 2 Impact 22 | . . 20 2 Slashing . | . . . . Piercing . | . . . . Sneak Attacks 4 | . . 4 . Combat Hostiles . | . . . . Follow-up Attacks . | . . . . Damage Inflicted 9443 | 45 734 2288 6376 Guns 3117 | 37 620 1775 685 Cannons 5309 | . . 162 5147 Explosions 746 | . 114 111 521 Melee 229 | . . 229 . Ramming 42 | 8 . 11 23 Kinetic 7461 | 37 438 1565 5421 Thermal 636 | . 114 111 411 Explosive 521 | . . . 521 Electromagnetic 554 | . 182 372 . Impact 229 | . . 229 . Slashing . | . . . . Piercing . | . . . . Highest Corruption . | . . . . Average Corruption . | . . . . Corruption Purged . | . . . . Corruption Blocked . | . . . . Overload Shots . | . . . . Overflow Damage 318 | . . 50 268 Projectiles 238 | . . . 238 Explosions 30 | . . . 30 Melee 50 | . . 50 . Knockbacks 18 | . . 2 16 Impact . | . . . . Kinetic 16 | . . 2 14 Secondary 2 | . . . 2 Self-Inflicted Damage 181 | . . 47 134 Shots 6 | . . 2 4 Rammed 7 | 2 1 . 4 Targets Rammed 8 | 2 1 1 4 Kicked . | . . . . Crushed 1 | . . 1 . Highest Temperature 242 | . 12 132 242 Average Temperature 38 | . 4 30 52 Received Heat Transfer 1143 | . 42 174 927 Effects 1 | . . . 1 Energy Bleed 1 | . . . 1 Siege Activations . | . . . . Martial Activations . | . . . . Shielding Activations . | . . . . Robots Disrupted . | . . . . Combat Hostiles . | . . . . Robots Corrupted 2 | . . 2 . Combat Hostiles 1 | . . 1 . Parts Fried 5 | . 1 4 . Impact Corruptions 1 | . . 1 . Robots Melted . | . . . . Combat Hostiles . | . . . . Parts Melted . | . . . . Heat Transferred 940 | . 150 50 740 Parts Sabotaged . | . . . . Parts Stolen . | . . . . Parts Stripped . | . . . . Power Chain Reactions 3 | . 1 2 . Alert | -11 -10 -9 -8 ------- Run | Yrd Mat Mat Mat Maximum Alert Level 2 | . . 1 2 Low Security (%) 72 | 100 100 81 43 Level 1 24 | . . 18 48 Level 2 2 | . . . 8 Level 3 . | . . . . Level 4 . | . . . . Level 5 . | . . . . High Security . | . . . . Max Security . | . . . . Peak Influence 582 | 5 175 370 582 Initial 152 | . . 70 152 Average 127 | . 37 101 222 Influence Increases 2485 | 5 368 910 1202 Destroy 0b10 Robot/C 1600 | . 220 600 780 Destroy 0b10 Robot/NC 160 | 5 20 65 70 Destroy Leader 408 | . 56 178 174 Successful Hack 55 | . 8 44 3 Disable Machine 105 | . 45 . 60 Destroy Structure 97 | . 4 23 70 Lose Combat Pursuer 60 | . 15 . 45 Influence Decreases 1903 | 5 199 717 982 Entered New Map 309 | . . 99 210 Time Decay 1380 | 5 199 608 568 Lost Part 214 | . . 10 204 Squads Dispatched 9 | . 2 2 5 Investigation 1 | . . 1 . Extermination . | . . . . Reinforcement 6 | . 2 1 3 Assault 2 | . . . 2 Garrison . | . . . . Intercept . | . . . . Searches Triggered . | . . . . Construction Impeded . | . . . . Haulers Reinforced . | . . . . Active Scanning Responses . | . . . . Cargo Convoy Interrupts . | . . . . Stealth | -11 -10 -9 -8 --------- Run | Yrd Mat Mat Mat Distress Signals 9 | . 4 3 2 Communications Jammed 31 | . . . 31 Distress Signals 31 | . . . 31 Times Spotted 130 | . 25 48 57 Peak Tracking Total 6 | . 4 4 6 Tactical Retreats 4 | . 1 . 3 Traps | -11 -10 -9 -8 ------- Run | Yrd Mat Mat Mat Traps Triggered 2 | . . 1 1 Indirectly . | . . . . Trap Hack Attempts . | . . . . Triggered . | . . . . Disarmed . | . . . . Reprogrammed . | . . . . Reused . | . . . . Traps Extracted . | . . . . Installed . | . . . . Triggered . | . . . . Machines | -11 -10 -9 -8 ---------- Run | Yrd Mat Mat Mat Machines Disabled 7 | . 3 . 4 Max in Single Turn 1 | . 1 . 1 Machines Repaired . | . . . . Machines Dismantled . | . . . . Machines Sabotaged . | . . . . Overloaded Fab Kills . | . . . . Hacking | -11 -10 -9 -8 --------- Run | Yrd Mat Mat Mat Machines Accessed 23 | . 5 15 3 Terminals 18 | . 5 11 2 Fabricators . | . . . . Repair Stations 2 | . . 2 . Recycling Units 2 | . . 1 1 Scanalyzers 1 | . . 1 . Garrison Access . | . . . . Total Hacks 70 | . 13 47 10 Successful 35 | . 5 26 4 Failed 35 | . 8 21 6 Catastrophic 6 | . 1 5 . Database Lockouts . | . . . . Manual 55 | . 9 39 7 Terminals 60 | . 13 38 9 Fabricators . | . . . . Repair Stations 6 | . . 6 . Recycling Units 2 | . . 1 1 Scanalyzers 2 | . . 2 . Garrison Access . | . . . . Terminal Hacks 9 | . 1 8 . Part Schematic 1 | . . 1 . Robot Analysis 4 | . . 4 . Terminal Index 2 | . 1 1 . Locate Traps 1 | . . 1 . Zone Layout 1 | . . 1 . Fabricator Hacks . | . . . . Repair Station Hacks 4 | . . 4 . Scan Component 3 | . . 3 . Repair 1 | . . 1 . Recycling Unit Hacks . | . . . . Scanalyzer 2 | . . 2 . Insert Component 1 | . . 1 . Analyze 1 | . . 1 . Garrison Access Hacks . | . . . . Unauthorized Hacks 20 | . 4 12 4 Terminals 18 | . 4 11 3 Assimilate 1 | . . 1 . Botnet 5 | . 1 3 1 Operators 1 | . . 1 . Skim 11 | . 3 6 2 Fabricators . | . . . . Repair Stations . | . . . . Recycling Units 2 | . . 1 1 Recyclers 2 | . . 1 1 Scanalyzers . | . . . . Garrison Access . | . . . . Data Cores Recovered . | . . . . Used . | . . . . Hacking Detections 20 | . 5 13 2 Full Trace Events 3 | . 1 1 1 Feedback Events . | . . . . Feedback Blocked . | . . . . Robot Schematics Acquired . | . . . . Robots Built . | . . . . Authchips . | . . . . Time . | . . . . Total Robot Build Rating . | . . . . Part Schematics Acquired 2 | . . 2 . Parts Built . | . . . . Authchips . | . . . . Time . | . . . . Total Part Build Rating . | . . . . Parts Repaired 1 | . . 1 . Time 32 | . . 32 . Parts Recycled . | . . . . Recycled Matter . | . . . . Retrieved Matter . | . . . . Retrieved Components . | . . . . Parts Scanalyzed 1 | . . 1 . Part Schematics Acquired 1 | . . 1 . Parts Damaged . | . . . . Bothacking | -11 -10 -9 -8 ------------ Run | Yrd Mat Mat Mat Used RIF Installer . | . . . . Robots Hacked . | . . . . Non-combat . | . . . . Combat . | . . . . Robot Hacks Applied . | . . . . Relay Couplers Released . | . . . . Fabnet Peak Effective % . | . . . . Robots Rewired . | . . . . Allies Hacked . | . . . . Hacks Repelled . | . . . . Allies | -11 -10 -9 -8 -------- Run | Yrd Mat Mat Mat Total Allies . | . . . . Largest Group . | . . . . Highest-Rated Group . | . . . . Highest-Rated Ally . | . . . . Total Orders . | . . . . Ally Attacks . | . . . . Total Damage . | . . . . Kills . | . . . . Allies Corrupted . | . . . . Allies Melted . | . . . . Intel | -11 -10 -9 -8 ------- Run | Yrd Mat Mat Mat Active Infowar (turns) 4681 | 35 903 2035 1708 Seismic 3998 | 35 903 2035 1025 Machine Analysis 1707 | . . . 1707 Jamming 134 | . . . 134 Robot Analysis Total 4 | . . 4 . Derelict Logs Recovered . | . . . . Drone Launches . | . . . . Drone Recoveries . | . . . . Exploration | -11 -10 -9 -8 ------------- Run | Yrd Mat Mat Mat Turns Passed 5398 | 99 903 2688 1708 Spaces Moved 2402 | 49 408 1238 707 Core 15 | 14 1 . . Treads 2018 | 35 191 1085 707 Legs . | . . . . Wheels . | . . . . Hover 369 | . 216 153 . Flight . | . . . . Fastest Speed 50 | 50 160 112 145 Average Speed 158 | 158 171 154 157 Slowest Speed 500 | 200 500 160 232 Overloaded Moves . | . . . . Propulsion Burnouts . | . . . . Robots Hopped . | . . . . Potential Cave-ins . | . . . . Cave-ins Triggered . | . . . . Exploration Rate (%) 50 | 5 43 88 65 Regions Visited 3 Branch Regions . Pre-discovered Areas 1 | . . 1 . Known Exits Taken . | . . . . Unknown Exits Taken 3 | 1 1 1 . Scrap Searched . | . . . . Spaces Dug 13 | . . 10 3 Terrain Destroyed 102 | . 2 19 81 Melee 12 | . . 10 2 Projectile 35 | . . . 35 AOE 55 | . 2 9 44 Terrain Rammed . | . . . . Walls Destroyed . | . . . . Machines Disabled . | . . . . Actions | -11 -10 -9 -8 --------- Run | Yrd Mat Mat Mat Total 3455 | 62 536 1831 1026 Wait 499 | 1 55 386 57 Move 2399 | 48 407 1237 707 Hop . | . . . . Pick Up 58 | 2 15 28 13 Fast Attach 16 | 7 1 3 5 Attach 22 | . . 6 16 Detach 3 | . 1 . 2 Swap 83 | . 15 46 22 Drop 47 | . 5 33 9 Fire 298 | 2 36 71 189 Melee 22 | . . 20 2 Ram . | . . . . Kick . | . . . . Crush 8 | 2 1 1 4 Escape Stasis . | . . . . Rewire . | . . . . Trap . | . . . . Miscellaneous . | . . . . Route ------- -11/Scrapyard -10/Materials (discovered 2 exits: *Mat x2) -9/Materials (discovered 4 exits: *Mat x3 / Min) -8/Materials History --------- Turn | Location | Event 31 | -11/Scrapyard | Discovered new exit (range 14) 100 | -11/Scrapyard | Entered Materials 311 | -10/Materials | Build established: Mutant 687 | -10/Materials | Discovered new exit (range 15) 900 | -10/Materials | Derelicts attacked the area 904 | -10/Materials | Discovered new exit (range 10) 1003 | -10/Materials | Entered another Materials area 1003 | -9/Materials | Evolved 2 slots: Propulsion x1, Weapon x1 1954 | -9/Materials | Discovered new exit (range 3) 2169 | -9/Materials | Build established: Gunner 2541 | -9/Materials | Discovered new exit (range 15) 2795 | -9/Materials | Discovered new exit (range 16) 2901 | -9/Materials | Identified exit to Mines 2974 | -9/Materials | Learned location of Recycling (-7) 2996 | -9/Materials | Learned Storage trap positions 3020 | -9/Materials | Repaired Imp. Treads 3059 | -9/Materials | Loaded intel: 18 interactive machine locations 3516 | -9/Materials | Build established: Tank 3691 | -9/Materials | Entered another Materials area 3691 | -8/Materials | Evolved 2 slots: Utility x2 4039 | -8/Materials | Build established: Gunner 4253 | -8/Materials | Core integrity fell below 50% 4295 | -8/Materials | Found Prototype Device 4314 | -8/Materials | Lost 9 parts (1p3n3u2w) 4528 | -8/Materials | Build established: Scavenger-Mutant 4994 | -8/Materials | Build established: Scavenger-Skirmisher 5267 | -8/Materials | Core integrity fell below 20% 5291 | -8/Materials | First assault squad dispatched 5399 | -8/Materials | Destroyed by G-47 Trooper with Particle Gun Last Messages --------------- 05377_ Adv. Treads destroyed. 05377_ G-47 Trooper knocked back. 05377_ I-25 Savior distress signal jammed. 05379_ K-01 Serf collects debris. 05379_ G-47 Trooper knocked back. 05379_ I-25 Savior distress signal jammed. 05381_ G-47 Trooper destroyed. 05381_ I-25 Savior distress signal jammed. 05382_ K-01 Serf collects debris. 05382_ I-25 Savior distress signal jammed. 05385_ G-50 Soldier destroyed. 05385_ I-25 Savior distress signal jammed. 05387_ K-01 Serf collects debris. 05387_ G-47 Trooper knocked back. 05387_ I-25 Savior distress signal jammed. 05391_ K-01 Serf collects debris. 05391_ I-25 Savior distress signal jammed. 05393_ I-25 Savior destroyed. 05395_ K-01 Serf collects debris. 05399_ M-28 Smith resupplies. Map ----- +----------------------------------------------------+ | ??# """ #???????????????????? | | ???# #???"""?????????????? | | ###+####+#+#####??"""""????????????? | | #####??"""""????????????? | | ]#??"""""????????????? | | ] #???"""?????????????? | | ##+###### /#???????????????????? | | ## ????# //#???????????????????? | | ## ????# %==#???????????????????? | | ## ???# ==#???????????????????? | | ## ! ???# #####????????? ???????? | | ## ??# #????????????? #??????? | | ## ??# #????????????? % #??????? | | ######## #????????????# #??????? | | # # #????????????#k% #??????? | | # #????????????# %#??????? | | # #????????????# ! #??????? | | #!!! # #????????????#=%[#??????? | | ###!! # #???????????## = #??????? | | ##!! # ########?????;%%%#??????? | | ######### =[%%#??????? | | ##???????# ########?????#%==#??????? | | ##???????# #// #???????#%=%#??????? | | #"######?# #// #???????#==/#?"""??? | | #?# #/ #???????#!*%#?"T"??? | | #?# # #???????#@ /#??????? | | [ #?# + #???""" ; +??????? | | #?# # #???"R" ;%=!#??????? | | #?# # #?? "m" #%[%#??????? | | ! #?# # = #?[ #%%%######## | | % ???# # #[[ ?#=*!# # | | [ ?????# ############?# =g% # | | #+####???# #????????????#[%%# # | | [!! ###### ##############%% + # | | [!! ^ % # # | | T[ % # # | | * # ! # | | ###+######+######+#####;# [ # | | #+#### #???????# ! /#; # | | # !%##??????# " ## # | | """" # ] ##?"""??# T # # | | """" # % ##?"""??# [## # | | """" # !!#??"""??# ## # | | """" #[[[ #???????#! " """ #?####### | | """" #[ [=######### " """ #???????? | | #![= ## # [ """" #???????? | | ?#* ## # ! #???????? | | /##??##+#### ####+#######?????? | | #???## #??# #??# #?????? | | ######=##?# #??# #?????? | +----------------------------------------------------+ Best States ------------- Heat Dissipation 53 Energy Generation 14 Energy Capacity 265 Matter Stores 313 Matter Capacity 450 Sight Range 16 Terrain Scan Density 10 Jamming Range 12 Armor Coverage 225 Evasion (%) 40 Targeting Accuracy 6 Recoil Reduction 3 Item Schematics ----------------- Hrd. Medium Armor Plating | -9/Materials | Scanalyzed Hcp. Storage Unit | -9/Materials | Hacked Robot Schematics ------------------ None Fabricated ------------ Nothing Repaired ---------- Imp. Treads | 45% | -9/Materials Alien Tech Used ----------------- None Achievements -------------- None Challenges ------------ None Game ------ Seed MinesnifferXenonLauncher Manual? 0 Play Time 00:50:43 Cumulative 104.4 hours Start 2025.05.19 @ 17:05:59 End 2025.05.19 @ 18:18:18 Sessions 1 Manual Loads 0 Difficulty Rogue Special Mode None Game No. 108 Rogue 108 Adventurer 0 Explorer 0 Win Type - Total 1 Types 1/0/0/0/0/0/0/0/0/0 Lore% 60 Gallery% 54 Achievement% 47 Wizard Run 0 Options --------- Layout 0 ASCII 0 Keyboard 1 Movement Numpad Keybinds 0 Fullscreen 1 Font 24/Terminus Map View 76x50 Zoom Use 0% Tactical HUD 1 Map Filters NONE Filters NONE Steam 1 RUN: b3aad671-878f-44ee-83ef-e87d007055d2